[Event "ONJK-A 2019"]
[Site "Borne"]
[Date "2019.08.10"]
[Round "9.12"]
[White "Nies, Levi"]
[Black "Butzen, Robin"]
[Result "0-1"]
[ECO "B23"]
[WhiteElo "1516"]
[BlackElo "1967"]
[Annotator "NA"]
[PlyCount "46"]
[EventDate "2019.08.05"]
[EventType "swiss"]
[EventCountry "NED"]
[SourceTitle "playchess.com"]
[Source "ChessBase"]
[SourceQuality "1"]
[TimeControl "5400+30"]

1. e4 {[%emt 0:00:00]} c5 {[%emt 0:00:00]} 2. Nc3 {[%emt 0:00:00]} a6 {[%emt 0:00:00]} 3. f4 {[%emt 0:00:00]} b5 {[%emt 0:00:00]} 4. Nf3 {[%emt 0:00:49]} Bb7 {[%emt 0:00:00]} 5. d3 {[%emt 0:01:17]} e6 {[%emt 0:00:28]} 6. g3 {[%emt 0:01:46]} d5 {[%emt 0:00:24]} 7. exd5 {[%emt 0:05:17]} exd5 {[%emt 0:01:14]} 8. Bg2 {[%emt 0:02:10]} Nf6 {[%emt 0:00:09]} 9. O-O {[%emt 0:02:07]} Be7 {[%emt 0:01:37]} 10. f5 {[%emt 0:05:43]} O-O {[%emt 0:00:50]} 11. Bf4 {[%emt 0:02:07]} d4 {[%emt 0:04:14]} 12. Ne2 {[%emt 0:01:19]} Nbd7 {[%emt 0:03:01]} 13. h3 {[%emt 0:02:37]} Nd5 {[%emt 0:17:43]} 14. Bd2 {[%emt 0:13:40]} Bd6 {[%emt 0:01:24]} 15. Ng5 {[%emt 0:04:46]} N7f6 {[%emt 0:05:35]} 16. Nf4 {[%emt 0:05:08]} Ne3 {[%emt 0:11:35]} 17. Bxe3 {[%emt 0:03:05]} Bxg2 {[%emt 0:00:19]} 18. Kxg2 {[%emt 0:00:03]} dxe3 {[%emt 0:00:06]} 19. Qe2 {[%emt 0:01:50]} Bxf4 {[%emt 0:04:02]} 20. Rxf4 {[%emt 0:00:23]} Nd5 {[%emt 0:00:15]} 21. Rg4 {[%emt 0:03:32]} h5 {[%emt 0:00:40]} 22. Nxf7 {[%emt 0:03:56]} Rxf7 {[%emt 0:00:16]} 23. Rh4 {[%emt 0:00:30]} Qxh4 {[%emt 0:01:13]} 0-1